bitfinex/quotes_SOLUSD_20250316
["timestamp","ask_amount","ask_price","bid_price","bid_amount"]
[1742109551635,23.98029754,134.53,134.52,46.69734816]
[1742109551836,31.12029754,134.53,134.52,46.69734816]
[1742109552035,49.7699464,134.53,134.52,46.69734816]
[1742109553949,31.12029754,134.53,134.52,46.69734816]
[1742109554332,31.12029754,134.53,134.52,46.76034816]
[1742109555253,49.7699464,134.53,134.52,46.76034816]
[1742109555447,49.7699464,134.53,134.52,0.063]
[1742109555648,57.48746954,134.53,134.52,0.063]
[1742109558243,50.05426954,134.53,134.52,0.063]
[1742109559062,57.48746954,134.53,134.52,0.063]
[1742109560179,196.66,134.56,134.52,0.063]
[1742109560467,31.08029754,134.53,134.52,0.063]
[1742109560843,23.98029754,134.53,134.52,0.063]
[1742109561044,31.06029754,134.53,134.52,0.063]
[1742109562839,49.7099464,134.53,134.52,0.063]
[1742109563443,57.42746954,134.53,134.52,0.063]
[1742109566953,57.42746954,134.53,134.46,0.063]
[1742109566954,81.40776708,134.53,134.46,0.063]
[1742109567151,23.98029754,134.47,134.46,0.063]
[1742109567357,31.02029754,134.47,134.46,0.063]
[1742109569963,7.04,134.47,134.46,0.063]
[1742109570162,31.02029754,134.47,134.46,0.063]
[1742109572772,7.04,134.47,134.46,0.063]
[1742109573346,66.20003855,134.52,134.46,0.063]
[1742109573558,49.6499464,134.51,134.46,24.04329754]
[1742109574560,49.6499464,134.51,134.47,7.4366]
[1742109574757,23.98029754,134.5,134.47,7.4366]
[1742109575272,23.98029754,134.52,134.47,50.00839754]
[1742109575452,30.98029754,134.52,134.47,50.00839754]
[1742109575652,7.0,134.52,134.48,23.98029754]
[1742109576673,7.0,134.52,134.49,7.4354]
[1742109578269,7.03,134.52,134.49,7.4354]
[1742109578771,7.03,134.52,134.48,26.025]
[1742109579367,7.03,134.52,134.48,50.00529754]
[1742109582151,0.03,134.52,134.48,50.00529754]
[1742109584278,0.03,134.52,134.48,41.38701858]
[1742109586197,0.03,134.52,134.49,15.36201858]
[1742109586370,0.03,134.52,134.5,16.91251858]
[1742109586672,0.03,134.52,134.51,15.36201858]
[1742109587773,196.66,134.56,134.51,15.36201858]
[1742109588072,196.66,134.56,134.53,15.36201858]
[1742109588278,15.36201858,134.58,134.53,15.36201858]
[1742109589385,22.33201858,134.59,134.55,7.4321]
[1742109589773,22.31201858,134.59,134.55,26.0125]
[1742109590275,15.39201858,134.59,134.55,26.0125]
[1742109590590,0.03,134.59,134.55,41.37451858]
[1742109591594,0.03,134.59,134.55,26.0125]
[1742109591894,15.36201858,134.57,134.55,7.4321]
[1742109592763,15.36201858,134.57,134.54,7.4327]
[1742109593381,15.36201858,134.55,134.51,6.5038]
[1742109593563,15.36201858,134.55,134.51,7.4343]
[1742109593764,22.28201858,134.55,134.51,7.4343]
[1742109595993,15.36201858,134.53,134.51,7.4343]
[1742109596495,24.00048447,134.54,134.51,7.4343]
[1742109597580,6.92,134.55,134.53,24.00048447]
[1742109597788,24.00048447,134.58,134.53,24.00048447]
[1742109597968,30.90048447,134.58,134.53,24.00048447]
[1742109598473,24.00048447,134.57,134.53,24.00048447]
[1742109598873,24.00048447,134.57,134.52,24.00048447]
[1742109599181,30.90048447,134.58,134.53,24.00048447]
[1742109601094,30.90048447,134.58,134.54,7.4327]
[1742109601275,24.00048447,134.57,134.54,7.4327]
[1742109603790,24.00048447,134.55,134.5,82.2505]
[1742109604088,24.00048447,134.54,134.51,7.4343]
[1742109604294,6.86,134.53,134.51,7.4343]
[1742109606293,26.08084886,134.57,134.51,7.4343]
[1742109606492,0.03,134.59,134.56,24.00048447]
[1742109606704,0.03,134.59,134.57,24.00048447]
[1742109607200,0.03,134.59,134.58,7.4305]
[1742109609392,0.03,134.59,134.58,33.06898447]
[1742109610298,0.03,134.62,134.58,51.64528447]
[1742109610490,0.03,134.62,134.61,24.00048447]
[1742109611000,0.03,134.62,134.6,24.00048447]
[1742109611206,0.03,134.62,134.61,24.00048447]
[1742109612080,0.03,134.62,134.61,31.42928447]
[1742109614298,0.03,134.62,134.61,7.4288]
[1742109615403,0.03,134.62,134.6,7.4294]
[1742109615698,0.03,134.62,134.61,24.00048447]
[1742109617405,0.0001,134.62,134.61,31.42928447]
[1742109617587,0.0001,134.63,134.61,31.42928447]
[1742109617794,0.0001,134.63,134.62,24.00048447]
[1742109618913,0.0001,134.63,134.62,31.42878447]
[1742109620104,0.0001,134.64,134.63,1.5707]
[1742109620291,0.0001,134.64,134.63,25.57118447]
[1742109620904,0.0001,134.64,134.63,32.99888447]
[1742109621302,0.0001,134.64,134.63,75.93334094]
[1742109621506,0.0001,134.64,134.63,156.63334094]
[1742109622004,0.0001,134.64,134.63,113.69888447]
[1742109622702,0.0001,134.64,134.63,137.69936894]
[1742109622901,0.0001,134.64,134.63,156.63334094]
[1742109625607,0.0001,134.64,134.63,137.69936894]
[1742109625794,0.0001,134.64,134.63,113.69888447]
[1742109627487,0.0001,134.64,134.63,32.99888447]
[1742109634510,0.0001,134.65,134.63,32.99888447]
[1742109634815,0.0001,134.65,134.64,48.00096894]
[1742109636203,0.0001,134.65,134.64,24.00048447]
[1742109636608,0.0001,134.65,134.64,31.42768447]
[1742109640028,0.0001,134.65,134.64,31.42768447]
[1742109645237,0.0001,134.65,134.64,55.42816894]
[1742109645436,0.0001,134.65,134.64,31.42768447]
[1742109646648,0.0001,134.65,134.64,7.4272]
[1742109647928,0.0001,134.65,134.64,55.42816894]
[1742109648332,0.0001,134.65,134.64,136.12816894]
[1742109649741,0.0001,134.65,134.64,112.12768447]
[1742109651123,22.67124386,134.7,134.64,112.12768447]
[1742109651828,24.03048447,134.71,134.64,112.12768447]
[1742109652022,31.45388447,134.71,134.64,130.69568447]
[1742109654429,0.03,134.71,134.67,24.00048447]
[1742109656336,0.03,134.71,134.65,1.5422]
[1742109656337,0.03,134.71,134.68,7.425]
[1742109656542,24.03048447,134.71,134.66,24.00048447]
[1742109657542,24.03048447,134.71,134.67,7.4253]
[1742109658227,24.00048447,134.7,134.66,7.4259]
[1742109658818,24.03048447,134.71,134.66,7.4259]
[1742109659946,31.45388447,134.71,134.66,7.4259]
[1742109660845,24.00048447,134.7,134.66,7.4259]
[1742109661449,24.00048447,134.69,134.65,7.4264]
[1742109662325,15.3251899,134.69,134.65,7.4264]
[1742109662527,15.3251899,134.68,134.65,7.4264]
[1742109664149,15.3251899,134.69,134.65,7.4264]
[1742109666949,15.3251899,134.67,134.63,0.063]
[1742109667853,15.3251899,134.67,134.63,7.4905]
[1742109668765,29.4303899,134.68,134.63,7.4905]
[1742109669454,22.0051899,134.68,134.63,7.4905]
[1742109669629,22.0051899,134.68,134.63,22.8156899]
[1742109670639,15.3251899,134.67,134.63,7.4905]
[1742109674354,15.3251899,134.67,134.63,15.3881899]
[1742109675752,15.3251899,134.64,134.63,0.063]
[1742109676274,15.25486426,134.64,134.63,0.063]
[1742109677763,22.68206426,134.64,134.63,0.063]
[1742109677965,41.33171312,134.64,134.63,0.063]
[1742109679573,102.63247272,134.64,134.63,0.063]
[1742109680557,41.40203876,134.64,134.63,0.063]
[1742109683573,41.6863619,134.64,134.63,0.063]
[1742109683803,102.9871215,134.64,134.63,0.063]
[1742109686252,109.6096215,134.64,134.63,0.063]
[1742109687263,109.6396215,134.64,134.63,0.063]
[1742109691676,103.0171215,134.64,134.63,0.063]
[1742109694076,15.3551899,134.64,134.63,0.063]
[1742109699390,0.03,134.64,134.63,0.063]
[1742109705097,15.3551899,134.64,134.63,0.063]
[1742109705477,34.00483876,134.64,134.63,0.063]
[1742109705674,41.43203876,134.64,134.63,0.063]
[1742109706998,34.00483876,134.64,134.63,0.063]
[1742109707204,15.3551899,134.64,134.63,0.063]
[1742109707581,0.03,134.64,134.63,0.063]
[1742109707895,0.03,134.64,134.63,15.3881899]
[1742109709500,0.03,134.64,134.63,22.8158899]
[1742109712103,0.03,134.64,134.63,0.063]
[1742109715779,15.3551899,134.64,134.63,0.063]
[1742109720103,0.03,134.64,134.63,0.063]
[1742109721906,0.03,134.7,134.64,16.9063899]
[1742109722088,0.03,134.7,134.65,15.3251899]
[1742109723111,0.03,134.7,134.66,15.3251899]
[1742109724106,0.03,134.7,134.68,15.3251899]
[1742109725206,0.03,134.7,134.69,7.4244]
[1742109725793,0.03,134.7,134.69,22.7495899]
[1742109726312,0.0001,134.71,134.69,24.3307899]
[1742109726511,0.0001,134.71,134.7,15.3251899]
[1742109727309,0.0001,134.71,134.7,22.7490899]
[1742109730486,0.0001,134.71,134.7,7.4239]
[1742109736821,0.0001,134.71,134.7,22.7490899]
[1742109739628,0.0001,134.71,134.7,7.4239]
[1742109747635,0.0001,134.71,134.7,22.7490899]
[1742109750125,0.0001,134.71,134.7,84.0498495]
[1742109750324,0.0001,134.72,134.7,84.0498495]
[1742109750546,0.0001,134.72,134.71,15.3251899]
[1742109751454,0.0001,134.72,134.71,22.7484899]
[1742109751817,0.0001,134.72,134.71,7.4233]
[1742109753049,0.0001,134.72,134.7,88.1236]
[1742109753234,0.0001,134.72,134.7,7.4236]
[1742109753548,14.3552899,134.73,134.7,7.4236]
[1742109759154,14.3852899,134.73,134.7,7.4236]
[1742109759862,14.3852899,134.73,134.69,9.0684]
[1742109760350,7.4522,134.73,134.69,0.063]
[1742109760649,15.3251899,134.7,134.69,0.063]
[1742109773873,22.7490899,134.7,134.69,0.063]
[1742109774758,15.3251899,134.7,134.69,0.063]
[1742109774961,15.3251899,134.72,134.69,0.063]
[1742109775255,6.53,134.73,134.69,0.063]
[1742109775455,0.03,134.73,134.72,15.3251899]
[1742109776864,0.03,134.73,134.72,22.7479899]
[1742109778054,0.03,134.73,134.72,7.4228]
[1742109778360,0.03,134.73,134.72,22.7479899]
[1742109783266,0.03,134.73,134.72,7.4228]
[1742109785151,0.03,134.73,134.71,7.4231]
[1742109787474,0.03,134.73,134.71,22.7482899]
[1742109789476,0.03,134.73,134.72,15.3251899]
[1742109790573,0.03,134.73,134.72,22.7479899]
[1742109790758,0.03,134.73,134.72,7.4228]
[1742109791867,0.03,134.73,134.7,1.6454]
[1742109792075,0.0001,134.73,134.72,35.3251899]
[1742109792256,0.03,134.76,134.73,18.933972]
[1742109792457,0.03,134.76,134.73,109.59272905]
[1742109792967,0.03,134.76,134.74,7.4217]
[1742109793162,0.03,134.78,134.75,15.3251899]
[1742109793358,0.03,134.78,134.77,15.3251899]
[1742109794975,0.03,134.78,134.77,22.7451899]
[1742109805380,0.03,134.78,134.77,7.42]
[1742109805685,0.03,134.78,134.77,22.7451899]
[1742109814795,0.03,134.78,134.77,103.4451899]
[1742109828294,0.03,134.78,134.77,122.3791619]
[1742109829321,0.03,134.78,134.77,103.72951304]
[1742109833417,0.03,134.78,134.77,103.4451899]
[1742109834818,0.03,134.78,134.77,88.12]
[1742109835005,0.03,134.78,134.77,103.4451899]
[1742109838218,0.03,134.78,134.77,22.7451899]
[1742109840321,0.03,134.78,134.76,22.7456899]
[1742109840709,0.03,134.78,134.76,7.4205]
[1742109842034,0.03,134.78,134.76,15.3251899]
[1742109843828,0.03,134.78,134.77,7.42]
[1742109846233,0.03,134.78,134.76,7.4205]
[1742109847029,0.03,134.78,134.76,22.7456899]
[1742109851430,0.03,134.78,134.76,7.4205]
[1742109852518,0.03,134.78,134.75,7.4841]
[1742109852714,0.03,134.78,134.75,22.8092899]
[1742109853233,0.03,134.78,134.76,15.3251899]
[1742109854328,0.03,134.78,134.75,26.0369]
[1742109854329,0.03,134.78,134.75,18.6158]
[1742109854527,0.03,134.78,134.75,0.063]
[1742109854933,0.03,134.78,134.75,22.8089899]
[1742109855751,0.03,134.78,134.76,15.3251899]
[1742109856630,15.3251899,134.77,134.75,0.063]
[1742109857019,15.3251899,134.76,134.75,0.063]
[1742109857435,15.3251899,134.77,134.75,0.063]
[1742109862141,15.3251899,134.76,134.75,0.063]
[1742109864644,84.0464495,134.76,134.75,0.063]
[1742109864946,0.03,134.78,134.75,0.063]
[1742109865120,15.3551899,134.78,134.75,0.063]
[1742109865745,15.3251899,134.77,134.75,0.063]
[1742109866345,15.3551899,134.78,134.75,0.063]
[1742109869052,15.3251899,134.77,134.75,0.063]
[1742109869538,15.3251899,134.76,134.75,0.063]
[1742109869941,15.3251899,134.77,134.75,0.063]
[1742109872534,15.3551899,134.78,134.75,0.063]
[1742109875256,15.3251899,134.77,134.75,0.063]
[1742109876458,0.03,134.77,134.75,0.063]
[1742109881461,15.3551899,134.77,134.75,0.063]
[1742109885663,0.03,134.77,134.75,0.063]
[1742109886548,0.03,134.77,134.75,15.3881899]
[1742109888160,0.03,134.77,134.76,7.4205]
[1742109888763,15.3551899,134.77,134.75,7.4839]
[1742109889469,15.3551899,134.77,134.75,0.063]
[1742109889870,15.3251899,134.76,134.75,0.063]
[1742109891962,90.4864495,134.76,134.75,0.063]
[1742109897260,109.4204215,134.76,134.75,0.063]
[1742109898878,32.794472,134.76,134.75,0.063]
[1742109899174,47.83533876,134.76,134.75,0.063]
[1742109899964,21.7651899,134.76,134.75,0.063]
[1742109900476,15.3251899,134.76,134.75,0.063]
[1742109901877,22.7456899,134.76,134.75,0.063]
[1742109902881,84.0464495,134.76,134.75,0.063]
[1742109904075,102.9804215,134.76,134.75,0.063]
[1742109918289,66.08787698,134.77,134.75,0.063]
[1742109918582,81.41306688,134.77,134.75,0.063]
[1742109918979,0.03,134.77,134.75,15.3881899]
[1742109919369,0.03,134.77,134.76,15.3251899]
[1742109920101,0.03,134.77,134.75,15.3881899]
[1742109920391,0.03,134.77,134.76,7.4205]
[1742109921383,0.03,134.77,134.76,22.7456899]
[1742109926879,0.03,134.77,134.76,7.4205]
[1742109929205,0.03,134.77,134.75,7.4841]
[1742109929506,15.3251899,134.76,134.75,0.063]
[1742109930282,95.27559836,134.76,134.75,0.063]
[1742109930900,95.5599215,134.76,134.75,0.063]
[1742109931399,102.9804215,134.76,134.75,0.063]
[1742109934403,169.03829848,134.76,134.75,0.063]
[1742109934972,20.0,134.73,134.72,0.063]
[1742109935179,41.7651899,134.73,134.72,0.063]
[1742109936202,49.1873899,134.73,134.72,0.063]
[1742109936997,68.1213619,134.73,134.72,0.063]
[1742109944894,20.0,134.73,134.72,0.063]
[1742109945200,81.38306688,134.74,134.72,0.063]
[1742109945602,15.3251899,134.73,134.72,0.063]
[1742109948716,22.7473899,134.73,134.72,0.063]
[1742109950012,15.3251899,134.73,134.72,0.063]
[1742109953212,22.7473899,134.73,134.72,0.063]
[1742109953415,41.6813619,134.73,134.72,0.063]
[1742109961322,20.0,134.7,134.69,0.063]
[1742109961618,53.97483876,134.7,134.69,0.063]
[1742109962522,115.27559836,134.7,134.69,0.063]
[1742109963620,61.39873876,134.7,134.69,0.063]
[1742109963806,35.3251899,134.7,134.69,0.063]
[1742109965918,66.05787698,134.72,134.69,0.063]
[1742109966128,15.3251899,134.7,134.69,0.063]
[1742109967929,102.9838215,134.7,134.69,0.063]
[1742109968307,41.6830619,134.7,134.69,0.063]
[1742109969316,33.97483876,134.7,134.69,0.063]
[1742109972325,41.39873876,134.7,134.69,0.063]
[1742109973727,102.9838215,134.7,134.69,0.063]
[1742109977408,20.0,134.66,134.63,0.063]
[1742109977710,15.3251899,134.65,134.63,0.063]
[1742109978713,20.0,134.66,134.63,0.063]
[1742109980325,20.0,134.66,134.63,15.3881899]
[1742109980533,103.9651899,134.69,134.65,15.3251899]
[1742109980832,88.64,134.69,134.65,15.3251899]
[1742109982327,103.9651899,134.69,134.64,22.7523899]
[1742109985734,88.64,134.69,134.65,15.3251899]
[1742109987037,88.64,134.69,134.66,7.4261]
[1742109988519,103.9651899,134.69,134.66,7.4261]
[1742109988940,88.64,134.69,134.66,7.4261]
[1742109989320,88.64,134.69,134.67,1.5608]
[1742109989321,82.2,134.69,134.67,1.5608]
[1742109989639,0.03,134.7,134.67,1.5608]
[1742109990240,0.03,134.7,134.68,7.425]
[1742109991322,0.03,134.7,134.67,1.5608]
[1742109991323,15.3551899,134.7,134.67,8.986]
[1742109996564,0.03,134.7,134.67,8.986]
[1742109997048,15.3251899,134.68,134.66,0.063]
[1742109998548,22.7498899,134.69,134.66,0.063]
[1742110001342,15.3251899,134.68,134.66,0.063]
[1742110001928,22.7502899,134.68,134.66,0.063]
[1742110002846,15.3251899,134.67,134.66,0.063]
[1742110004647,22.7506899,134.67,134.66,0.063]
[1742110004839,41.40033876,134.67,134.66,0.063]
[1742110010043,41.6846619,134.67,134.66,0.063]
[1742110027270,41.40033876,134.67,134.66,0.063]
[1742110029773,48.1246619,134.67,134.66,0.063]
[1742110041183,6.44,134.67,134.66,0.063]
[1742110042580,7.4252,134.68,134.66,0.063]
[1742110042774,13.8652,134.68,134.66,0.063]
[1742110045479,29.1903899,134.68,134.66,0.063]
[1742110046957,18.64964886,134.68,134.66,0.063]
[1742110047168,25.08964886,134.68,134.66,0.063]
[1742110049090,40.41483876,134.68,134.66,0.063]
[1742110050284,47.83983876,134.68,134.66,0.063]
[1742110057499,15.3251899,134.67,134.66,0.063]
[1742110060597,41.40033876,134.67,134.66,0.063]
[1742110060788,41.6846619,134.67,134.66,0.063]
[1742110067004,123.8846619,134.67,134.66,0.063]
[1742110074813,108.559472,134.67,134.66,0.063]
[1742110075117,0.03,134.72,134.68,8.2519]
[1742110075319,0.03,134.72,134.71,15.3251899]
[1742110075486,0.03,134.72,134.71,16.9360899]
[1742110076317,11.33214657,134.76,134.71,16.9360899]
[1742110076519,11.33214657,134.76,134.74,15.3251899]
[1742110078197,11.33214657,134.76,134.74,22.7468899]
[1742110078607,11.33214657,134.76,134.74,15.3251899]
[1742110079613,0.03,134.76,134.74,15.3251899]
[1742110079918,0.03,134.76,134.74,22.7468899]
[1742110083817,1.3168823,134.78,134.74,84.0476495]
[1742110084025,1.3168823,134.78,134.77,15.3251899]
[1742110084425,8.23e-05,134.78,134.77,15.3251899]
[1742110085013,8.23e-05,134.78,134.77,22.7451899]
[1742110085515,8.23e-05,134.79,134.77,22.7451899]
[1742110085826,8.23e-05,134.79,134.78,15.3251899]
[1742110086927,8.23e-05,134.8,134.79,7.4189]
[1742110087129,8.23e-05,134.8,134.79,22.7440899]
[1742110096031,8.23e-05,134.8,134.79,7.4189]
[1742110097822,8.23e-05,134.8,134.78,7.4194]
[1742110098232,8.23e-05,134.8,134.78,22.7445899]
[1742110099716,8.23e-05,134.8,134.77,18.5501]
[1742110099932,8.23e-05,134.8,134.77,33.8752899]
[1742110100136,8.23e-05,134.8,134.78,15.3251899]
[1742110102240,8.23e-05,134.8,134.79,7.4189]
[1742110109146,8.23e-05,134.8,134.78,0.063]
[1742110112560,8.23e-05,134.8,134.79,15.3251899]
[1742110113046,8.23e-05,134.8,134.78,0.063]
[1742110117355,8.23e-05,134.8,134.78,15.3881899]
[1742110118450,8.23e-05,134.8,134.78,0.063]
[1742110121664,15.3251899,134.79,134.78,0.063]
[1742110122356,15.3252722,134.8,134.78,0.063]
[1742110125454,8.23e-05,134.8,134.78,0.063]
[1742110127746,8.23e-05,134.8,134.79,15.3251899]
[1742110128447,8.23e-05,134.8,134.78,15.3881899]
[1742110128650,8.23e-05,134.8,134.78,0.063]
[1742110129055,6.4400823,134.8,134.78,0.063]
[1742110132763,6.4400823,134.8,134.78,15.3881899]
[1742110132966,8.23e-05,134.8,134.78,15.3881899]
[1742110134756,8.23e-05,134.8,134.79,7.4189]
[1742110134945,8.23e-05,134.8,134.78,7.4823]
[1742110135340,8.23e-05,134.8,134.78,0.063]
[1742110135551,15.3252722,134.8,134.78,0.063]
[1742110137565,8.23e-05,134.8,134.78,0.063]
[1742110137748,8.23e-05,134.8,134.79,15.3251899]
[1742110138862,8.23e-05,134.8,134.79,22.7440899]
[1742110142972,82.2,134.87,134.79,22.7440899]
[1742110142973,82.2,134.9,134.83,20.0]
[1742110143183,0.28432314,134.92,134.88,15.3251899]
[1742110143347,6.48,134.93,134.82,67.7607596]
[1742110143555,18.64964886,134.92,134.9,15.3251899]
[1742110143768,6.48,134.93,134.9,15.3251899]
[1742110144074,0.03,134.94,134.92,15.3251899]
[1742110144258,0.03,134.94,134.93,15.3251899]
[1742110144667,0.03,134.94,134.91,15.3251899]
[1742110144971,0.03,134.94,134.92,7.4117]
[1742110145163,0.03,134.94,134.92,22.7368899]
[1742110148282,0.03,134.94,134.93,15.3251899]
[1742110149358,0.03,134.94,134.93,22.7363899]
[1742110151078,0.03,134.94,134.92,22.7367899]
[1742110152088,0.03,134.94,134.92,15.3251899]
[1742110152290,0.03,134.94,134.91,7.4119]
[1742110152472,0.03,134.94,134.92,15.3251899]
[1742110155394,0.03,134.94,134.92,22.7368899]
[1742110155680,0.03,134.94,134.92,7.4117]
[1742110158579,0.03,134.94,134.92,22.7368899]
[1742110161389,0.03,134.94,134.9,22.7379899]
[1742110162264,15.3551899,134.94,134.9,7.4128]
[1742110162481,15.3251899,134.93,134.89,7.4132]
[1742110164073,22.7364899,134.93,134.88,22.7388899]
[1742110165083,15.3251899,134.93,134.88,22.7388899]
[1742110167394,18.64964886,134.92,134.87,22.7394899]
[1742110167600,33.97483876,134.92,134.87,22.7394899]
[1742110168695,41.38693876,134.92,134.87,22.7394899]
[1742110169072,15.3251899,134.91,134.87,7.4143]
[1742110169373,15.3251899,134.91,134.87,22.7394899]
[1742110170078,33.97483876,134.92,134.87,22.7394899]
[1742110171718,41.38663876,134.92,134.87,22.7394899]
[1742110174897,41.41663876,134.92,134.87,22.7394899]
[1742110177403,41.6716619,134.91,134.86,15.3881899]
[1742110177705,15.3251899,134.9,134.86,0.063]
[1742110178900,15.3251899,134.89,134.86,0.063]
[1742110179502,22.7388899,134.89,134.86,0.063]
[1742110179696,15.3251899,134.89,134.86,0.063]
[1742110179902,22.7382899,134.9,134.86,0.063]
[1742110180096,7.4131,134.9,134.86,0.063]
[1742110182204,7.4131,134.9,134.86,7.478]
[1742110185112,22.7382899,134.9,134.86,7.478]
[1742110197922,22.7682899,134.9,134.86,7.478]
[1742110199029,22.7682899,134.9,134.86,0.063]
[1742110202722,18.79181043,134.89,134.86,0.063]
[1742110204337,34.11700033,134.89,134.86,0.063]
[1742110205933,41.53040033,134.89,134.86,0.063]
[1742110209742,41.56040033,134.89,134.86,0.063]
[1742110211443,15.3251899,134.88,134.86,0.063]
[1742110212222,41.56040033,134.89,134.86,0.063]
[1742110216448,15.3251899,134.88,134.86,0.063]
[1742110219450,41.56040033,134.89,134.86,0.063]
[1742110222051,15.3251899,134.88,134.86,0.063]
[1742110223348,22.7391899,134.88,134.86,0.063]
[1742110223557,34.2591619,134.87,134.86,0.063]
[1742110224276,41.6736619,134.87,134.86,0.063]
[1742110227370,41.6736619,134.87,134.86,0.063]
[1742110227961,18.933972,134.87,134.86,0.063]
[1742110228169,33.97483876,134.88,134.86,0.063]
[1742110231801,18.64964886,134.88,134.86,0.063]
[1742110232272,18.64964886,134.88,134.86,7.478]
[1742110233388,18.67964886,134.88,134.86,7.478]
[1742110234583,0.03,134.88,134.86,7.478]
[1742110258908,0.03,134.88,134.87,15.3251899]
[1742110259199,0.03,134.88,134.87,22.7396899]
[1742110260210,0.03,134.89,134.87,22.7396899]
[1742110260369,0.03,134.89,134.88,15.3251899]
[1742110261395,0.03,134.89,134.88,24.2455899]
[1742110265996,0.03,134.9,134.88,85.5463495]
[1742110266186,0.03,134.9,134.89,15.3251899]
[1742110266374,0.03,134.92,134.89,15.3251899]
[1742110266575,0.03,134.92,134.91,15.3251899]
[1742110268101,0.03,134.92,134.91,22.7374899]
[1742110269995,0.03,134.92,134.91,24.2439899]
[1742110270507,0.03,134.92,134.91,30.19302582]
[1742110270705,0.03,134.92,134.91,24.2439899]
[1742110273610,0.03,134.94,134.93,15.3251899]
[1742110274897,0.03,134.94,134.93,22.7363899]
[1742110275805,0.5,135.0,134.97,0.28432314]
[1742110276011,0.5,135.0,134.99,15.3251899]
[1742110276305,0.03,135.03,135.02,15.3251899]
[1742110276510,0.03,135.03,135.01,15.3251899]
[1742110276844,0.03,135.03,134.98,8.0757]
[1742110276845,0.03,135.03,135.02,15.3251899]
[1742110276986,0.03,135.03,135.02,22.7314899]
[1742110282219,0.03,135.03,135.01,22.7317899]
[1742110282588,0.03,135.03,135.0,15.3881899]
[1742110282795,0.03,135.03,135.0,0.063]
[1742110284210,0.03,135.03,135.0,15.3881899]
[1742110284606,0.03,135.03,135.0,0.063]
[1742110287301,0.03,135.03,135.0,15.3881899]
[1742110287913,0.03,135.03,135.01,15.3251899]
[1742110288093,0.03,135.03,135.02,15.3251899]
[1742110289201,0.03,135.03,135.02,22.7314899]
[1742110292324,0.03,135.03,135.01,22.7318899]
[1742110292610,0.03,135.03,135.0,22.7952899]
[1742110292811,0.03,135.03,135.01,15.3251899]
[1742110293110,0.03,135.03,135.02,15.3251899]
[1742110293994,0.03,135.03,135.02,22.7314899]
[1742110297015,0.03,135.03,135.0,7.4701]
[1742110297198,0.03,135.03,135.0,0.063]
[1742110297404,15.3551899,135.03,135.0,0.063]
[1742110297624,22.7613899,135.03,135.0,0.063]
[1742110298308,31.2598937,135.03,135.0,0.063]
[1742110300523,0.03,135.03,135.0,0.063]
[1742110300911,0.03,135.03,135.0,23.8866937]
[1742110303731,0.03,135.03,135.0,31.2939937]
[1742110313225,0.03,135.03,135.02,23.8236937]
[1742110314639,0.03,135.03,135.02,31.2299937]
[1742110316023,0.03,135.03,135.02,32.7767937]
[1742110317433,0.0001,135.03,135.02,32.7767937]
[1742110320343,0.0001,135.03,135.02,24.18409562]
[1742110321239,0.0001,135.03,135.02,24.46841876]
[1742110321423,0.0001,135.03,135.02,43.11806762]
[1742110323439,0.0001,135.03,135.02,24.18409562]
[1742110325259,0.0001,135.03,135.02,22.63729562]
[1742110325438,0.0001,135.03,135.01,22.63749562]
[1742110326446,0.0001,135.03,135.02,0.063]
[1742110327046,0.0001,135.03,135.02,15.29399562]
[1742110327653,0.0001,135.03,135.02,22.70029562]
[1742110329530,0.0001,135.03,135.02,15.29399562]
[1742110329732,0.0001,135.03,135.02,0.063]
[1742110329921,0.0001,135.03,135.02,7.4693]
[1742110330141,0.0001,135.03,135.02,22.70029562]